[Event "4NCL Div 2 2024-25"]
[Site "England"]
[Date "2024.11.24"]
[Round "2.17"]
[White "Arnott, Jonathan W"]
[Black "Richardson, John R"]
[Result "0-1"]
[Annotator "RC"]
[ECO "B12"]
[WhiteElo "2087"]
[BlackElo "2287"]
[PlyCount "90"]
[EventDate "2024.11.23"]
[EventType "team-tourn"]
[EventCountry "ENG"]
[SourceTitle "playchess.com"]
[Source "ChessBase"]
[SourceQuality "1"]
[TimeControl "40/6000+30:3000+30"]

1. e4 {[%emt 0:10:01]} c6 {[%emt 0:10:02]} 2. d4 {[%emt 0:00:04]} d5 {[%emt 0:00:02]} 3. e5 {[%emt 0:00:04]} Bf5 {[%emt 0:00:03]} 4. Nd2 {[%emt 0:00:03]} e6 {[%emt 0:00:04]} 5. Nb3 {[%emt 0:00:02]} Nd7 {[%emt 0:00:04]} 6. Nf3 {[%emt 0:00:04]} c5 {[%emt 0:00:29]} 7. dxc5 {[%emt 0:01:25]} Bxc5 {[%emt 0:00:04]} 8. Nxc5 {[%emt 0:01:47]} Qa5+ {[%emt 0:00:03]} 9. c3 {[%emt 0:00:33]} Qxc5 {[%emt 0:00:03]} 10. Qa4 {[%emt 0:04:39]} Ne7 {[%emt 0:04:29]} 11. Bb5 {[%emt 0:03:01]} Qc7 {[%emt 0:01:02]} 12. O-O {[%emt 0:03:39]} a6 {[%emt 0:11:51]} 13. Nd4 {[%emt 0:05:44]} Rc8 {[%emt 0:08:08]} 14. Bxd7+ {[%emt 0:23:59]} Qxd7 {[%emt 0:01:25]} 15. Qxd7+ {[%emt 0:00:32]} Kxd7 {[%emt 0:00:01]} 16. Be3 {[%emt 0:04:26]} Rc4 {[%emt 0:06:18]} 17. a4 {[%emt 0:02:40]} f6 {[%emt 0:03:24]} 18. f4 {[%emt 0:04:31]} fxe5 {[%emt 0:06:04]} 19. fxe5 {[%emt 0:00:22]} Bg6 {[%emt 0:00:04]} 20. Nb3 {[%emt 0:00:32]} Rhc8 {[%emt 0:01:00]} 21. Na5 {[%emt 0:02:39]} Re4 {[%emt 0:00:29]} 22. Bd4 {[%emt 0:01:33]} Nf5 {[%emt 0:02:24]} 23. Rxf5 {[%emt 0:01:44]} Bxf5 {[%emt 0:03:56]} 24. Nxb7 {[%emt 0:00:09]} Re2 {[%emt 0:00:31]} 25. Nc5+ {[%emt 0:07:50]} Rxc5 {[%emt 0:07:04]} 26. Bxc5 {[%emt 0:00:04]} Rxb2 {[%emt 0:00:05]} 27. h3 {[%emt 0:05:39]} Kc6 {[%emt 0:07:54]} 28. Bf2 {[%emt 0:01:48]} a5 {[%emt 0:03:43]} 29. Ra3 {[%emt 0:01:58]} Bc2 {[%emt 0:02:04]} 30. Bd4 {[%emt 0:08:32]} Be4 {[%emt 0:00:19]} 31. Bf2 {[%emt 0:00:03]} h5 {[%emt 0:00:12]} 32. h4 {[%emt 0:01:19]} Kd7 {[%emt 0:02:03]} 33. Ra1 {[%emt 0:01:30]} Ke8 {[%emt 0:01:51]} 34. Rf1 {[%emt 0:02:53]} Ra2 {[%emt 0:01:19]} 35. Kh2 {[%emt 0:00:34]} Rxa4 {[%emt 0:00:21]} 36. Bc5 {[%emt 0:00:08]} Bf5 {[%emt 0:00:50]} 37. g3 {[%emt 0:01:43]} Ra2+ {[%emt 0:02:50]} 38. Rf2 {[%emt 0:00:07]} Rxf2+ {[%emt 0:00:39]} 39. Bxf2 {[%emt 0:00:03]} Kd7 {[%emt 0:00:06]} 40. Kg2 {[%emt 0:02:11]} Kc6 {[%emt 0:00:08]} 41. Kf3 {[%emt 0:50:05]} a4 {[%emt 0:50:46]} 42. Bd4 {[%emt 0:00:04]} Kb5 {[%emt 0:01:05]} 43. Ke3 {[%emt 0:00:03]} Kc4 {[%emt 0:01:15]} 44. Kd2 {[%emt 0:00:03]} a3 {[%emt 0:00:46]} 45. Kc1 {[%emt 0:00:04]} g6 {[%emt 0:00:48]} 0-1

[Event "4NCL Div 2 2024-25"]
[Site "England"]
[Date "2024.11.24"]
[Round "2.18"]
[White "Babu, Rahul"]
[Black "Wall, Tim P"]
[Result "1/2-1/2"]
[Annotator "RC"]
[ECO "B13"]
[WhiteElo "2169"]
[BlackElo "2168"]
[PlyCount "74"]
[EventDate "2024.11.23"]
[EventType "team-tourn"]
[EventCountry "ENG"]
[SourceTitle "playchess.com"]
[Source "ChessBase"]
[SourceQuality "1"]
[TimeControl "40/6000+30:3000+30"]

1. e4 {[%emt 0:10:03]} c6 {[%emt 0:10:11]} 2. d4 {[%emt 0:00:03]} d5 {[%emt 0:00:29]} 3. exd5 {[%emt 0:00:02]} cxd5 {[%emt 0:00:11]} 4. Bd3 {[%emt 0:00:04]} Nf6 {[%emt 0:00:51]} 5. c3 {[%emt 0:00:06]} Bg4 {[%emt 0:00:23]} 6. Qb3 {[%emt 0:00:05]} Qc7 {[%emt 0:00:27]} 7. f3 {[%emt 0:27:42]} Bh5 {[%emt 0:04:52]} 8. Nh3 {[%emt 0:04:11]} Bg6 {[%emt 0:01:20]} 9. Bf4 {[%emt 0:00:05]} Qd7 {[%emt 0:03:56]} 10. Nf2 {[%emt 0:00:09]} Nc6 {[%emt 0:01:41]} 11. Nd2 {[%emt 0:00:05]} e6 {[%emt 0:03:25]} 12. g4 {[%emt 0:09:50]} Bd6 {[%emt 0:05:39]} 13. Bxd6 {[%emt 0:07:11]} Qxd6 {[%emt 0:00:11]} 14. O-O-O {[%emt 0:00:52]} O-O-O {[%emt 0:05:54]} 15. h4 {[%emt 0:02:59]} Qc7 {[%emt 0:13:15]} 16. Kb1 {[%emt 0:00:53]} e5 {[%emt 0:00:57]} 17. Qa4 {[%emt 0:08:45]} Nd7 {[%emt 0:15:54]} 18. Bxg6 {[%emt 0:03:11]} hxg6 {[%emt 0:02:14]} 19. dxe5 {[%emt 0:00:35]} Ndxe5 {[%emt 0:00:30]} 20. f4 {[%emt 0:03:22]} Nd7 {[%emt 0:00:35]} 21. Nd3 {[%emt 0:00:05]} Nb6 {[%emt 0:05:28]} 22. Qc2 {[%emt 0:08:28]} Rde8 {[%emt 0:03:49]} 23. Nb3 {[%emt 0:03:47]} Nc4 {[%emt 0:03:35]} 24. Rde1 {[%emt 0:00:19]} Rxe1+ {[%emt 0:05:45]} 25. Rxe1 {[%emt 0:00:01]} Qd7 {[%emt 0:00:37]} 26. Nf2 {[%emt 0:01:53]} Rxh4 {[%emt 0:01:58]} 27. f5 {[%emt 0:00:01]} Rh2 {[%emt 0:10:53]} 28. fxg6 {[%emt 0:01:16]} fxg6 {[%emt 0:00:15]} 29. Re2 {[%emt 0:02:02]} N6e5 {[%emt 0:02:24]} 30. a3 {[%emt 0:00:54]} b6 {[%emt 0:03:21]} 31. Nd2 {[%emt 0:03:43]} Qf7 {[%emt 0:03:41]} 32. Nxc4 {[%emt 0:03:48]} Nxc4 {[%emt 0:00:02]} 33. Ka2 {[%emt 0:00:01]} Kb7 {[%emt 0:00:21]} 34. Nd3 {[%emt 0:00:32]} Ne3 {[%emt 0:00:54]} 35. Qd2 {[%emt 0:00:22]} Nc4 {[%emt 0:00:49]} 36. Qc2 {[%emt 0:00:01]} Ne3 {[%emt 0:00:21]} 37. Qd2 {[%emt 0:00:04]} Nc4 {[%emt 0:00:46]} 1/2-1/2

[Event "4NCL Div 2 2024-25"]
[Site "England"]
[Date "2024.11.24"]
[Round "2.19"]
[White "Chan, Sheng Liang Bernard"]
[Black "Roe, Simon J"]
[Result "0-1"]
[Annotator "RC"]
[ECO "D20"]
[WhiteElo "2101"]
[BlackElo "2145"]
[PlyCount "66"]
[EventDate "2024.11.23"]
[EventType "team-tourn"]
[EventCountry "ENG"]
[SourceTitle "playchess.com"]
[Source "ChessBase"]
[SourceQuality "1"]
[TimeControl "40/6000+30:3000+30"]

1. d4 {[%emt 0:10:05]} d5 {[%emt 0:10:05]} 2. c4 {[%emt 0:00:15]} dxc4 {[%emt 0:00:06]} 3. e4 {[%emt 0:00:11]} Nc6 {[%emt 0:00:13]} 4. Be3 {[%emt 0:02:41]} Nf6 {[%emt 0:02:07]} 5. e5 {[%emt 0:01:49]} Bg4 {[%emt 0:03:12]} 6. Nf3 {[%emt 0:09:04]} Nd5 {[%emt 0:05:18]} 7. Bxc4 {[%emt 0:01:18]} e6 {[%emt 0:00:54]} 8. a3 {[%emt 0:01:58]} Be7 {[%emt 0:01:55]} 9. Nc3 {[%emt 0:02:18]} Nxe3 {[%emt 0:06:20]} 10. fxe3 {[%emt 0:00:08]} Bh4+ {[%emt 0:00:52]} 11. Kf1 {[%emt 0:06:19]} O-O {[%emt 0:01:04]} 12. Be2 {[%emt 0:02:35]} Be7 {[%emt 0:07:14]} 13. Kf2 {[%emt 0:14:23]} f6 {[%emt 0:06:16]} 14. exf6 {[%emt 0:00:06]} Bxf6 {[%emt 0:00:05]} 15. Rf1 {[%emt 0:09:57]} Bg5 {[%emt 0:02:57]} 16. Qd3 {[%emt 0:02:11]} Bf5 {[%emt 0:17:49]} 17. e4 {[%emt 0:00:49]} Bg4 {[%emt 0:00:47]} 18. Rad1 {[%emt 0:01:48]} Qd7 {[%emt 0:06:00]} 19. Ke1 {[%emt 0:10:06]} Bxf3 {[%emt 0:02:28]} 20. Rxf3 {[%emt 0:01:08]} Rxf3 {[%emt 0:01:39]} 21. Bxf3 {[%emt 0:01:44]} Rd8 {[%emt 0:00:57]} 22. Qb5 {[%emt 0:01:48]} Qe7 {[%emt 0:12:16]} 23. Ne2 {[%emt 0:03:44]} Be3 {[%emt 0:02:23]} 24. Qh5 {[%emt 0:09:41]} Nxd4 {[%emt 0:02:28]} 25. Nxd4 {[%emt 0:00:38]} Bxd4 {[%emt 0:01:19]} 26. Bg4 {[%emt 0:02:02]} Qf6 {[%emt 0:03:53]} 27. Rd2 {[%emt 0:01:09]} c5 {[%emt 0:01:23]} 28. e5 {[%emt 0:01:04]} Qe7 {[%emt 0:01:16]} 29. Ke2 {[%emt 0:02:07]} Rd5 {[%emt 0:01:32]} 30. Qh3 {[%emt 0:01:40]} Rxe5+ {[%emt 0:00:18]} 31. Kd1 {[%emt 0:00:01]} Re3 {[%emt 0:02:02]} 32. g3 {[%emt 0:00:25]} Qf6 {[%emt 0:00:50]} 33. Qg2 {[%emt 0:01:49]} Qg6 {[%emt 0:00:59]} 0-1

[Event "4NCL Div 2 2024-25"]
[Site "England"]
[Date "2024.11.24"]
[Round "2.20"]
[White "Bradbury, Neil H"]
[Black "Gayson, Peter M"]
[Result "1/2-1/2"]
[Annotator "RC"]
[ECO "A80"]
[WhiteElo "2149"]
[BlackElo "2087"]
[PlyCount "58"]
[EventDate "2024.11.23"]
[EventType "team-tourn"]
[EventCountry "ENG"]
[SourceTitle "playchess.com"]
[Source "ChessBase"]
[SourceQuality "1"]
[TimeControl "40/6000+30:3000+30"]

1. d4 {[%emt 0:11:29]} f5 {[%emt 0:10:21]} 2. Bg5 {[%emt 0:01:02]} g6 {[%emt 0:00:42]} 3. e3 {[%emt 0:06:28]} Bg7 {[%emt 0:02:29]} 4. c3 {[%emt 0:00:35]} Nf6 {[%emt 0:01:47]} 5. Nd2 {[%emt 0:00:22]} O-O {[%emt 0:04:48]} 6. Bc4+ {[%emt 0:01:55]} d5 {[%emt 0:03:11]} 7. Bxf6 {[%emt 0:01:07]} Bxf6 {[%emt 0:01:22]} 8. Bb3 {[%emt 0:00:33]} Nc6 {[%emt 0:07:38]} 9. f4 {[%emt 0:01:16]} b6 {[%emt 0:08:39]} 10. Ngf3 {[%emt 0:05:49]} Na5 {[%emt 0:03:03]} 11. O-O {[%emt 0:07:48]} Ba6 {[%emt 0:05:04]} 12. Re1 {[%emt 0:00:24]} Bd3 {[%emt 0:02:06]} 13. e4 {[%emt 0:15:15]} Nxb3 {[%emt 0:21:50]} 14. Qxb3 {[%emt 0:01:03]} fxe4 {[%emt 0:00:46]} 15. Nxe4 {[%emt 0:04:24]} Bc4 {[%emt 0:04:14]} 16. Nxf6+ {[%emt 0:02:18]} exf6 {[%emt 0:00:40]} 17. Qc2 {[%emt 0:00:46]} Qd6 {[%emt 0:00:54]} 18. f5 {[%emt 0:00:43]} g5 {[%emt 0:06:35]} 19. Re6 {[%emt 0:15:05]} Qf4 {[%emt 0:01:34]} 20. Rae1 {[%emt 0:00:39]} Bb5 {[%emt 0:01:17]} 21. Nd2 {[%emt 0:08:37]} Bd7 {[%emt 0:05:55]} 22. Rf1 {[%emt 0:02:04]} Qg4 {[%emt 0:02:05]} 23. h3 {[%emt 0:02:36]} Qg3 {[%emt 0:01:16]} 24. Rf3 {[%emt 0:03:36]} Qh4 {[%emt 0:00:10]} 25. Re7 {[%emt 0:00:14]} Rf7 {[%emt 0:00:51]} 26. Ree3 {[%emt 0:06:32]} Re8 {[%emt 0:02:11]} 27. Rxe8+ {[%emt 0:03:58]} Bxe8 {[%emt 0:00:16]} 28. Nf1 {[%emt 0:00:06]} Re7 {[%emt 0:01:47]} 29. Qf2 {[%emt 0:00:25]} Qxf2+ {[%emt 0:02:06]} 1/2-1/2

[Event "4NCL Div 2 2024-25"]
[Site "England"]
[Date "2024.11.24"]
[Round "2.21"]
[White "Dunn, Andrew M"]
[Black "Snape, Ian L"]
[Result "1/2-1/2"]
[Annotator "RC"]
[ECO "D13"]
[WhiteElo "2117"]
[BlackElo "2061"]
[PlyCount "49"]
[EventDate "2024.11.23"]
[EventType "team-tourn"]
[EventCountry "ENG"]
[SourceTitle "playchess.com"]
[Source "ChessBase"]
[SourceQuality "1"]
[TimeControl "40/6000+30:3000+30"]

1. d4 {[%emt 1:41:00]} c5 {[%emt 0:10:05]} 2. c3 {[%emt 0:00:00]} cxd4 {[%emt 0:00:05]} 3. cxd4 {[%emt 0:01:00]} d5 {[%emt 0:00:04]} 4. Bf4 {[%emt 0:00:00]} Nc6 {[%emt 0:00:24]} 5. e3 {[%emt 0:00:00]} Nf6 {[%emt 0:00:39]} 6. Bd3 {[%emt 0:00:00]} e6 {[%emt 0:03:43]} 7. Nc3 {[%emt 0:00:00]} Bd6 {[%emt 0:00:29]} 8. Bxd6 {[%emt 0:00:00]} Qxd6 {[%emt 0:00:07]} 9. Nf3 {[%emt 0:00:00]} O-O {[%emt 0:00:35]} 10. O-O {[%emt 0:00:00]} e5 {[%emt 0:02:03]} 11. dxe5 {[%emt 0:00:00]} Nxe5 {[%emt 0:01:57]} 12. Be2 {[%emt 0:00:00]} Be6 {[%emt 0:06:57]} 13. Qd4 {[%emt 0:00:00]} Nc6 {[%emt 0:06:35]} 14. Qh4 {[%emt 0:00:00]} Rfd8 {[%emt 0:01:53]} 15. Rfd1 {[%emt 0:00:00]} Qe7 {[%emt 0:03:15]} 16. Nb5 {[%emt 0:00:00]} Rac8 {[%emt 0:01:50]} 17. Rac1 {[%emt 0:00:00]} a6 {[%emt 0:05:25]} 18. Nbd4 {[%emt 0:00:00]} Nxd4 {[%emt 0:00:58]} 19. Qxd4 {[%emt 0:00:00]} Ne4 {[%emt 0:02:55]} 20. h3 {[%emt 0:00:00]} h6 {[%emt 0:04:31]} 21. Bd3 {[%emt 0:00:00]} Nf6 {[%emt 0:09:24]} 22. Qb6 {[%emt 0:00:00]} Ne4 {[%emt 0:02:03]} 23. Qd4 {[%emt 0:00:00]} Nf6 {[%emt 0:00:37]} 24. Qb6 {[%emt 0:00:00]} Ne4 {[%emt 0:00:20]} 25. Qd4 {[%emt 0:00:00]} 1/2-1/2

[Event "4NCL Div 2 2024-25"]
[Site "England"]
[Date "2024.11.24"]
[Round "2.22"]
[White "Baltrunas, Evaldas"]
[Black "Wills, Tom"]
[Result "1/2-1/2"]
[Annotator "NA RC"]
[ECO "D43"]
[WhiteElo "1995"]
[BlackElo "1976"]
[PlyCount "53"]
[EventDate "2024.11.23"]
[EventType "team-tourn"]
[EventCountry "ENG"]
[SourceTitle "playchess.com"]
[Source "ChessBase"]
[SourceQuality "1"]
[TimeControl "40/6000+30:3000+30"]

1. d4 {[%emt 0:10:03]} d5 {[%emt 0:10:15]} 2. c4 {[%emt 0:00:05]} c6 {[%emt 0:00:06]} 3. Nf3 {[%emt 0:00:18]} Nf6 {[%emt 0:00:12]} 4. Nc3 {[%emt 0:00:13]} e6 {[%emt 0:00:10]} 5. Qd3 {[%emt 0:00:31]} dxc4 {[%emt 0:00:09]} 6. Qxc4 {[%emt 0:00:05]} b5 {[%emt 0:00:07]} 7. Qd3 {[%emt 0:00:09]} a6 {[%emt 0:00:24]} 8. g3 {[%emt 0:00:26]} Bb7 {[%emt 0:03:54]} 9. Bg2 {[%emt 0:00:22]} c5 {[%emt 0:02:40]} 10. O-O {[%emt 0:02:33]} Be7 {[%emt 0:11:49]} 11. Rd1 {[%emt 0:04:43]} O-O {[%emt 0:05:23]} 12. Ne5 {[%emt 0:12:28]} Qb6 {[%emt 0:07:39]} 13. Bxb7 {[%emt 0:10:01]} Qxb7 {[%emt 0:00:57]} 14. dxc5 {[%emt 0:00:33]} Bxc5 {[%emt 0:17:19]} 15. Be3 {[%emt 0:04:06]} Bxe3 {[%emt 0:09:32]} 16. Qxe3 {[%emt 0:00:06]} Nc6 {[%emt 0:00:58]} 17. Qf3 {[%emt 0:04:17]} Rac8 {[%emt 0:01:48]} 18. Rd2 {[%emt 0:23:49]} Qc7 {[%emt 0:03:31]} 19. Nxc6 {[%emt 0:01:18]} Qxc6 {[%emt 0:00:14]} 20. Qxc6 {[%emt 0:00:18]} Rxc6 {[%emt 0:00:06]} 21. a3 {[%emt 0:01:17]} g5 {[%emt 0:04:26]} 22. h3 {[%emt 0:02:25]} Rfc8 {[%emt 0:02:32]} 23. Rad1 {[%emt 0:00:15]} Rc5 {[%emt 0:04:20]} 24. Rd6 {[%emt 0:05:19]} R5c6 {[%emt 0:08:01]} 25. Kg2 {[%emt 0:02:33]} Kf8 {[%emt 0:05:03]} 26. Rxc6 {[%emt 0:05:14]} Rxc6 {[%emt 0:00:09]} 27. Kf3 {[%emt 0:02:11]} 1/2-1/2

[Event "4NCL Div 2 2024-25"]
[Site "England"]
[Date "2024.11.24"]
[Round "2.23"]
[White "Edwards-Wright, Miles D"]
[Black "Duggan, John E"]
[Result "0-1"]
[Annotator "NA RC"]
[ECO "C00"]
[WhiteElo "1970"]
[BlackElo "2028"]
[PlyCount "72"]
[EventDate "2024.11.23"]
[EventType "team-tourn"]
[EventCountry "ENG"]
[SourceTitle "playchess.com"]
[Source "ChessBase"]
[SourceQuality "1"]
[TimeControl "40/6000+30:3000+30"]

1. g3 {[%emt 0:10:03]} Nf6 {[%emt 0:10:13]} 2. Bg2 {[%emt 0:00:14]} d5 {[%emt 0:00:27]} 3. d3 {[%emt 0:00:34]} e6 {[%emt 0:01:20]} 4. Nd2 {[%emt 0:00:30]} c5 {[%emt 0:00:53]} 5. e4 {[%emt 0:00:28]} Nc6 {[%emt 0:00:21]} 6. Ne2 {[%emt 0:00:07]} Be7 {[%emt 0:02:49]} 7. O-O {[%emt 0:00:08]} O-O {[%emt 0:03:30]} 8. h3 {[%emt 0:02:51]} Qc7 {[%emt 0:07:57]} 9. c3 {[%emt 0:07:12]} Rd8 {[%emt 0:03:11]} 10. Qc2 {[%emt 0:00:21]} dxe4 {[%emt 0:03:13]} 11. dxe4 {[%emt 0:00:40]} Ne5 {[%emt 0:06:32]} 12. a4 {[%emt 0:05:25]} c4 {[%emt 0:10:18]} 13. Nd4 {[%emt 0:20:12]} a6 {[%emt 0:15:29]} 14. f4 {[%emt 0:01:19]} Nd3 {[%emt 0:04:39]} 15. e5 {[%emt 0:13:11]} Nd5 {[%emt 0:02:54]} 16. Ne4 {[%emt 0:03:41]} Nxc1 {[%emt 0:10:06]} 17. Qxc1 {[%emt 0:00:25]} Bd7 {[%emt 0:02:08]} 18. g4 {[%emt 0:04:59]} b5 {[%emt 0:02:21]} 19. Ng3 {[%emt 0:03:02]} bxa4 {[%emt 0:05:16]} 20. Bxd5 {[%emt 0:00:46]} exd5 {[%emt 0:00:02]} 21. Qe3 {[%emt 0:01:49]} Bc5 {[%emt 0:01:23]} 22. f5 {[%emt 0:01:58]} Re8 {[%emt 0:01:20]} 23. Rae1 {[%emt 0:00:14]} Qb6 {[%emt 0:02:24]} 24. f6 {[%emt 0:01:41]} g6 {[%emt 0:03:07]} 25. Qh6 {[%emt 0:02:35]} Bf8 {[%emt 0:00:07]} 26. Qg5 {[%emt 0:00:34]} h6 {[%emt 0:00:53]} 27. Qf4 {[%emt 0:00:06]} Kh7 {[%emt 0:00:23]} 28. h4 {[%emt 0:00:22]} Bc5 {[%emt 0:02:21]} 29. g5 {[%emt 0:02:01]} Qe6 {[%emt 0:00:40]} 30. h5 {[%emt 0:02:03]} Rg8 {[%emt 0:00:27]} 31. Rf2 {[%emt 0:01:48]} Bxd4 {[%emt 0:00:24]} 32. cxd4 {[%emt 0:00:30]} gxh5 {[%emt 0:00:25]} 33. Rh2 {[%emt 0:09:07]} Rxg5 {[%emt 0:03:56]} 34. Kf2 {[%emt 0:04:42]} Qg4 {[%emt 0:01:43]} 35. Qxg4 {[%emt 0:00:36]} Bxg4 {[%emt 0:00:02]} 36. Ra1 {[%emt 0:01:24]} Rb8 {[%emt 0:00:32]} 0-1

[Event "4NCL Div 2 2024-25"]
[Site "England"]
[Date "2024.11.24"]
[Round "2.24"]
[White "Kilambi, Venkata Ananth Aksha"]
[Black "Jaufarally, Nadia"]
[Result "0-1"]
[Annotator "NA RC"]
[ECO "A28"]
[WhiteElo "1861"]
[BlackElo "1929"]
[PlyCount "154"]
[EventDate "2024.11.23"]
[EventType "team-tourn"]
[EventCountry "ENG"]
[SourceTitle "playchess.com"]
[Source "ChessBase"]
[SourceQuality "1"]
[TimeControl "40/6000+30:3000+30"]

1. c4 {[%emt 0:10:04]} Nf6 {[%emt 0:10:09]} 2. Nc3 {[%emt 0:00:07]} e5 {[%emt 0:00:44]} 3. Nf3 {[%emt 0:00:07]} Nc6 {[%emt 0:00:07]} 4. e3 {[%emt 0:00:05]} Bb4 {[%emt 0:00:11]} 5. Qc2 {[%emt 0:00:09]} Bxc3 {[%emt 0:00:14]} 6. Qxc3 {[%emt 0:00:07]} Qe7 {[%emt 0:00:09]} 7. d4 {[%emt 0:00:27]} e4 {[%emt 0:00:34]} 8. Nd2 {[%emt 0:00:30]} d5 {[%emt 0:00:08]} 9. b3 {[%emt 0:01:36]} O-O {[%emt 0:00:27]} 10. Be2 {[%emt 0:00:11]} a5 {[%emt 0:02:10]} 11. Bb2 {[%emt 0:03:30]} Rd8 {[%emt 0:02:16]} 12. a3 {[%emt 0:04:06]} Bg4 {[%emt 0:03:38]} 13. Bxg4 {[%emt 0:12:48]} Nxg4 {[%emt 0:00:12]} 14. h3 {[%emt 0:03:24]} Qh4 {[%emt 0:06:31]} 15. Rf1 {[%emt 0:09:11]} Nh6 {[%emt 0:03:45]} 16. O-O-O {[%emt 0:05:57]} f5 {[%emt 0:06:30]} 17. Kb1 {[%emt 0:04:52]} Nf7 {[%emt 0:04:42]} 18. cxd5 {[%emt 0:05:25]} Rxd5 {[%emt 0:00:21]} 19. f3 {[%emt 0:00:52]} Nd6 {[%emt 0:10:34]} 20. Nc4 {[%emt 0:08:17]} Rd8 {[%emt 0:08:26]} 21. Ne5 {[%emt 0:04:55]} Nb5 {[%emt 0:03:27]} 22. Qc4 {[%emt 0:02:14]} Nxe5 {[%emt 0:15:18]} 23. dxe5 {[%emt 0:00:08]} c6 {[%emt 0:00:14]} 24. a4 {[%emt 0:10:01]} Nc7 {[%emt 0:01:26]} 25. Rd4 {[%emt 0:01:16]} Ne6 {[%emt 0:19:29]} 26. fxe4 {[%emt 0:01:01]} fxe4 {[%emt 0:00:27]} 27. Rxe4 {[%emt 0:00:39]} Qg3 {[%emt 0:00:25]} 28. Qe2 {[%emt 0:09:42]} Qg6 {[%emt 0:04:16]} 29. Qc2 {[%emt 0:01:38]} Rd2 {[%emt 0:01:39]} 30. Qc4 {[%emt 0:00:58]} R8d5 {[%emt 0:04:43]} 31. Ka1 {[%emt 0:04:01]} Rc5 {[%emt 0:00:26]} 32. Rg4 {[%emt 0:00:59]} Qe8 {[%emt 0:01:14]} 33. Qe4 {[%emt 0:00:42]} Rcc2 {[%emt 0:00:16]} 34. Bd4 {[%emt 0:03:36]} Qe7 {[%emt 0:00:57]} 35. Kb1 {[%emt 0:02:29]} Nxd4 {[%emt 0:01:12]} 36. exd4 {[%emt 0:00:20]} Ra2 {[%emt 0:00:36]} 37. Rxg7+ {[%emt 0:01:52]} Qxg7 {[%emt 0:00:30]} 38. Qf5 {[%emt 0:00:36]} Qg6 {[%emt 0:00:33]} 39. Qxg6+ {[%emt 0:00:35]} hxg6 {[%emt 0:00:06]} 40. e6 {[%emt 0:00:06]} Re2 {[%emt 0:00:13]} 41. e7 {[%emt 0:50:17]} Rad2 {[%emt 0:50:26]} 42. Kc1 {[%emt 0:00:37]} Ra2 {[%emt 0:00:00]} 43. Kb1 {[%emt 0:00:00]} Kg7 {[%emt 0:00:00]} 44. e8=Q {[%emt 0:00:00]} Rxe8 {[%emt 0:00:00]} 45. Kxa2 {[%emt 0:00:00]} Re2+ {[%emt 0:00:00]} 46. Ka3 {[%emt 0:00:00]} Rxg2 {[%emt 0:00:00]} 47. Rd1 {[%emt 0:00:00]} Rg5 {[%emt 0:00:00]} 48. Rd3 {[%emt 0:00:00]} Rd5 {[%emt 0:00:00]} 49. b4 {[%emt 0:00:00]} Kf6 {[%emt 0:00:00]} 50. bxa5 {[%emt 0:00:00]} Rxa5 {[%emt 0:00:08]} 51. Kb4 {[%emt 0:00:00]} Rg5 {[%emt 0:00:11]} 52. Kc4 {[%emt 0:00:00]} Ke6 {[%emt 0:00:09]} 53. Re3+ {[%emt 0:01:45]} Kd6 {[%emt 0:00:21]} 54. h4 {[%emt 0:01:23]} Ra5 {[%emt 0:02:28]} 55. Kb4 {[%emt 0:01:00]} Rh5 {[%emt 0:01:27]} 56. Re4 {[%emt 0:01:12]} g5 {[%emt 0:01:23]} 57. hxg5 {[%emt 0:00:19]} Rxg5 {[%emt 0:00:02]} 58. a5 {[%emt 0:01:15]} Rb5+ {[%emt 0:00:28]} 59. Ka4 {[%emt 0:00:24]} Rb1 {[%emt 0:00:11]} 60. Rh4 {[%emt 0:00:43]} Kd5 {[%emt 0:00:14]} 61. Rg4 {[%emt 0:00:57]} Kc4 {[%emt 0:02:23]} 62. Ka3 {[%emt 0:00:41]} Kc3 {[%emt 0:00:37]} 63. Ka2 {[%emt 0:00:38]} Rb5 {[%emt 0:00:08]} 64. Rg3+ {[%emt 0:00:43]} Kxd4 {[%emt 0:00:15]} 65. Ra3 {[%emt 0:00:01]} c5 {[%emt 0:00:57]} 66. a6 {[%emt 0:00:26]} bxa6 {[%emt 0:00:03]} 67. Rxa6 {[%emt 0:00:02]} c4 {[%emt 0:00:25]} 68. Rd6+ {[%emt 0:00:48]} Ke3 {[%emt 0:00:50]} 69. Rc6 {[%emt 0:00:40]} Kd3 {[%emt 0:00:08]} 70. Rd6+ {[%emt 0:00:29]} Kc2 {[%emt 0:00:09]} 71. Ka3 {[%emt 0:00:01]} c3 {[%emt 0:01:42]} 72. Rc6 {[%emt 0:00:31]} Rb3+ {[%emt 0:00:16]} 73. Ka2 {[%emt 0:00:30]} Rb8 {[%emt 0:00:16]} 74. Ka3 {[%emt 0:00:08]} Ra8+ {[%emt 0:00:30]} 75. Kb4 {[%emt 0:00:06]} Kb2 {[%emt 0:00:14]} 76. Kc4 {[%emt 0:02:24]} c2 {[%emt 0:00:18]} 77. Rb6+ {[%emt 0:00:09]} Ka2 {[%emt 0:00:19]} 0-1

[Event "4NCL Div 2 2024-25"]
[Site "England"]
[Date "2024.11.24"]
[Round "2.25"]
[White "Macklin, Paul"]
[Black "Bisby, Daniel L"]
[Result "1/2-1/2"]
[Annotator "RC"]
[ECO "B50"]
[WhiteElo "2308"]
[BlackElo "2290"]
[PlyCount "25"]
[EventDate "2024.11.23"]
[EventType "team-tourn"]
[EventCountry "ENG"]
[SourceTitle "playchess.com"]
[Source "ChessBase"]
[SourceQuality "1"]
[TimeControl "40/6000+30:3000+30"]

1. e4 {[%emt 0:10:03]} c5 {[%emt 0:11:00]} 2. Nf3 {[%emt 0:00:11]} d6 {[%emt 0:00:23]} 3. Bc4 {[%emt 0:18:04]} Nf6 {[%emt 0:05:21]} 4. d3 {[%emt 0:00:08]} e6 {[%emt 0:04:25]} 5. O-O {[%emt 0:00:55]} Be7 {[%emt 0:00:12]} 6. Bb3 {[%emt 0:00:17]} O-O {[%emt 0:00:54]} 7. c3 {[%emt 0:00:08]} b5 {[%emt 0:07:31]} 8. Re1 {[%emt 0:02:44]} Bb7 {[%emt 0:03:58]} 9. Bc2 {[%emt 0:00:13]} Nc6 {[%emt 0:06:14]} 10. Nbd2 {[%emt 0:02:29]} Qc7 {[%emt 0:03:55]} 11. Nf1 {[%emt 0:01:21]} Ne5 {[%emt 0:09:29]} 12. Bf4 {[%emt 0:05:39]} Ng6 {[%emt 0:10:10]} 13. Bd2 {[%emt 0:01:06]} 1/2-1/2

[Event "4NCL Div 2 2024-25"]
[Site "England"]
[Date "2024.11.24"]
[Round "2.26"]
[White "Manmay Chopra"]
[Black "Ashton, Adam G"]
[Result "1/2-1/2"]
[Annotator "RC"]
[ECO "C47"]
[WhiteElo "2217"]
[BlackElo "2285"]
[PlyCount "33"]
[EventDate "2024.11.23"]
[EventType "team-tourn"]
[EventCountry "ENG"]
[SourceTitle "playchess.com"]
[Source "ChessBase"]
[SourceQuality "1"]
[TimeControl "40/6000+30:3000+30"]

1. e4 {[%emt 0:10:03]} e5 {[%emt 0:11:39]} 2. Nf3 {[%emt 0:00:10]} Nc6 {[%emt 0:00:03]} 3. Nc3 {[%emt 0:00:19]} Nf6 {[%emt 0:00:11]} 4. d4 {[%emt 0:00:06]} exd4 {[%emt 0:00:05]} 5. Nxd4 {[%emt 0:00:07]} Bb4 {[%emt 0:00:10]} 6. Nxc6 {[%emt 0:00:31]} bxc6 {[%emt 0:00:08]} 7. Bd3 {[%emt 0:00:09]} d5 {[%emt 0:02:33]} 8. exd5 {[%emt 0:00:43]} cxd5 {[%emt 0:00:46]} 9. O-O {[%emt 0:00:07]} O-O {[%emt 0:00:03]} 10. h3 {[%emt 0:00:03]} Re8 {[%emt 0:11:40]} 11. Qf3 {[%emt 0:00:19]} c6 {[%emt 0:02:42]} 12. Bf4 {[%emt 0:00:20]} Qe7 {[%emt 0:10:03]} 13. Na4 {[%emt 0:21:49]} Bd7 {[%emt 0:16:49]} 14. a3 {[%emt 0:00:49]} Bd6 {[%emt 0:00:31]} 15. b4 {[%emt 0:01:40]} Bxf4 {[%emt 0:07:19]} 16. Qxf4 {[%emt 0:00:13]} Qe5 {[%emt 0:02:34]} 17. Qxe5 {[%emt 0:00:20]} 1/2-1/2